[Event "Goteborg Open 2018"]
[Site "Molnlycke kulturhus, Biblioteksgatan 2, Molnlycke, Sweden"]
[Date "2018.08.17"]
[Round "4.8"]
[White "Rasti, Arvin"]
[Black "Nilsson, Eskil"]
[Result "0-1"]
[TimeControl "15 minutes + 5 seconds per move from move one (Round 1 - 4) / 90 minutes + 30 seconds per move from move one (Round 5 - 8)"]
[WhiteFideId "1741160"]
[BlackFideId "1716220"]
[WhiteElo "2091"]
[BlackElo "1928"]

1. d4 {[%clk 00:15:04]} Nf6 {[%clk 00:15:03]} {[%emt 00:00:02]} 2. Bf4 {[%clk
00:15:07]} {[%emt 00:00:02]} g6 {[%clk 00:15:05]} {[%emt 00:00:03]} 3. Nf3
{[%clk 00:15:11]} {[%emt 00:00:02]} Bg7 {[%clk 00:15:08]} {[%emt 00:00:02]} 4.
e3 {[%clk 00:15:14]} {[%emt 00:00:01]} d6 {[%clk 00:15:12]} {[%emt 00:00:02]} 5.
Be2 {[%clk 00:15:13]} {[%emt 00:00:06]} O-O {[%clk 00:15:14]} {[%emt 00:00:03]}
6. Nbd2 {[%clk 00:15:02]} {[%emt 00:00:16]} c5 {[%clk 00:15:08]} {[%emt
00:00:11]} 7. c3 {[%clk 00:15:02]} {[%emt 00:00:06]} Nc6 {[%clk 00:14:58]}
{[%emt 00:00:15]} 8. O-O {[%clk 00:14:51]} {[%emt 00:00:15]} Bf5 {[%clk
00:13:29]} {[%emt 00:01:33]} 9. h3 {[%clk 00:14:42]} {[%emt 00:00:15]} Rc8
{[%clk 00:13:21]} {[%emt 00:00:13]} 10. Re1 {[%clk 00:14:03]} {[%emt 00:00:44]}
Re8 {[%clk 00:11:23]} {[%emt 00:02:03]} 11. Bh2 {[%clk 00:13:55]} {[%emt
00:00:13]} b6 {[%clk 00:10:42]} {[%emt 00:00:46]} 12. Bb5 {[%clk 00:13:49]}
{[%emt 00:00:12]} Ne4 {[%clk 00:09:28]} {[%emt 00:01:19]} 13. Nxe4 {[%clk
00:13:40]} {[%emt 00:00:14]} Bxe4 {[%clk 00:09:31]} {[%emt 00:00:01]} 14. d5
{[%clk 00:13:36]} {[%emt 00:00:09]} Bxf3 {[%clk 00:08:55]} {[%emt 00:00:41]} 15.
Qxf3 {[%clk 00:13:27]} {[%emt 00:00:13]} Ne5 {[%clk 00:08:39]} {[%emt
00:00:20]} 16. Bxe5 {[%clk 00:13:30]} {[%emt 00:00:02]} Bxe5 {[%clk 00:08:42]}
{[%emt 00:00:03]} 17. Bxe8 {[%clk 00:13:31]} {[%emt 00:00:04]} Qxe8 {[%clk
00:08:45]} {[%emt 00:00:02]} 18. e4 {[%clk 00:13:25]} {[%emt 00:00:11]} c4
{[%clk 00:08:28]} {[%emt 00:00:22]} 19. Qg4 {[%clk 00:13:09]} {[%emt 00:00:20]}
Rb8 {[%clk 00:08:07]} {[%emt 00:00:27]} 20. f4 {[%clk 00:13:09]} {[%emt
00:00:06]} Bg7 {[%clk 00:08:10]} {[%emt 00:00:01]} 21. e5 {[%clk 00:13:06]}
{[%emt 00:00:09]} Qb5 {[%clk 00:08:07]} {[%emt 00:00:08]} 22. exd6 {[%clk
00:12:30]} {[%emt 00:00:41]} exd6 {[%clk 00:08:02]} {[%emt 00:00:10]} 23. Re2
{[%clk 00:12:00]} {[%emt 00:00:35]} Qxd5 {[%clk 00:08:00]} {[%emt 00:00:08]} 24.
Rae1 {[%clk 00:11:50]} {[%emt 00:00:14]} Bf6 {[%clk 00:07:19]} {[%emt
00:00:46]} 25. Qd7 {[%clk 00:10:43]} {[%emt 00:01:12]} a5 {[%clk 00:03:20]}
{[%emt 00:04:04]} 26. Kh1 {[%clk 00:10:23]} {[%emt 00:00:26]} Kg7 {[%clk
00:03:15]} {[%emt 00:00:10]} 27. Re8 {[%clk 00:09:22]} {[%emt 00:01:05]} Rxe8
{[%clk 00:03:09]} {[%emt 00:00:12]} 28. Qxe8 {[%clk 00:09:22]} {[%emt
00:00:05]} Bh4 {[%clk 00:02:53]} {[%emt 00:00:19]} 29. Qe4 {[%clk 00:08:44]}
{[%emt 00:00:45]} Qd2 {[%clk 00:02:47]} {[%emt 00:00:11]} 30. Re2 {[%clk
00:08:47]} {[%emt 00:00:02]} Qd1+ {[%clk 00:02:14]} {[%emt 00:00:37]} 31. Kh2
{[%clk 00:08:48]} {[%emt 00:00:04]} b5 {[%clk 00:02:02]} {[%emt 00:00:18]} 32.
a3 {[%clk 00:08:10]} {[%emt 00:00:43]} Bf6 {[%clk 00:01:58]} {[%emt 00:00:08]}
33. Qc2 {[%clk 00:07:58]} {[%emt 00:00:17]} Qd5 {[%clk 00:01:42]} {[%emt
00:00:20]} 34. Qd2 {[%clk 00:07:46]} {[%emt 00:00:15]} Qc6 {[%clk 00:01:45]}
{[%emt 00:00:04]} 35. Qd1 {[%clk 00:07:30]} {[%emt 00:00:21]} b4 {[%clk
00:01:21]} {[%emt 00:00:30]} 36. axb4 {[%clk 00:06:59]} {[%emt 00:00:37]} axb4
{[%clk 00:01:25]} 37. Qd2 {[%clk 00:06:02]} {[%emt 00:01:01]} bxc3 {[%clk
00:01:21]} {[%emt 00:00:10]} 38. bxc3 {[%clk 00:06:07]} {[%emt 00:00:01]} Qc5
{[%clk 00:01:10]} {[%emt 00:00:15]} 39. Qe3 {[%clk 00:05:51]} {[%emt 00:00:20]}
Qc6 {[%clk 00:01:14]} {[%emt 00:00:01]} 40. Rd2 {[%clk 00:05:49]} {[%emt
00:00:07]} Qa6 {[%clk 00:01:06]} {[%emt 00:00:13]} 41. Qf3 {[%clk 00:05:16]}
{[%emt 00:00:38]} Qa3 {[%clk 00:01:06]} {[%emt 00:00:05]} 42. Qd5 {[%clk
00:04:26]} {[%emt 00:00:54]} Qxc3 {[%clk 00:01:03]} {[%emt 00:00:08]} 43. Qxd6
{[%clk 00:04:25]} {[%emt 00:00:06]} Qe3 {[%clk 00:01:07]} {[%emt 00:00:02]} 44.
Rc2 {[%clk 00:02:38]} {[%emt 00:01:53]} c3 {[%clk 00:01:10]} 45. Qb4 {[%clk
00:02:32]} {[%emt 00:00:11]} Bd4 {[%clk 00:01:01]} {[%emt 00:00:13]} 46. Qb1
{[%clk 00:02:21]} {[%emt 00:00:15]} Qxf4+ {[%clk 00:01:04]} {[%emt 00:00:04]}
47. Kh1 {[%clk 00:02:24]} {[%emt 00:00:01]} Be5 {[%clk 00:01:01]} {[%emt
00:00:09]} 48. Qg1 {[%clk 00:01:58]} {[%emt 00:00:30]} h5 {[%clk 00:01:03]}
{[%emt 00:00:03]} 49. g3 {[%clk 00:01:52]} {[%emt 00:00:12]} Qf3+ {[%clk
00:00:52]} {[%emt 00:00:16]} 50. Qg2 {[%clk 00:01:48]} {[%emt 00:00:09]} Qd1+
{[%clk 00:00:55]} {[%emt 00:00:01]} 51. Kh2 {[%clk 00:01:40]} {[%emt 00:00:14]}
h4 {[%clk 00:00:59]} 52. Qe2 {[%clk 00:01:39]} {[%emt 00:00:05]} hxg3+ {[%clk
00:00:49]} {[%emt 00:00:14]} 53. Kg2 {[%clk 00:01:43]} {[%emt 00:00:01]} Qd5+
{[%clk 00:00:45]} {[%emt 00:00:09]} 54. Kf1 {[%clk 00:01:43]} {[%emt 00:00:05]}
g2+ {[%clk 00:00:42]} {[%emt 00:00:08]} 55. Kg1 {[%clk 00:01:42]} {[%emt
00:00:06]} Bd4+ {[%clk 00:00:42]} {[%emt 00:00:05]} 56. Kh2 {[%clk 00:01:32]}
{[%emt 00:00:15]} 0-1

[Event "Goteborg Open 2018"]
[Site "Molnlycke kulturhus, Biblioteksgatan 2, Molnlycke, Sweden"]
[Date "2018.08.17"]
[Round "4.9"]
[White "Buzleta, Patrik"]
[Black "Kardell, Mathias"]
[Result "1/2-1/2"]
[TimeControl "15 minutes + 5 seconds per move from move one (Round 1 - 4) / 90 minutes + 30 seconds per move from move one (Round 5 - 8)"]
[WhiteFideId "1755463"]
[BlackFideId "1710109"]
[WhiteElo "1501"]
[BlackElo "2084"]

1. Nf3 {[%clk 00:15:01]} {[%emt 00:00:03]} d5 {[%clk 00:15:03]} {[%emt
00:00:02]} 2. b3 {[%clk 00:15:03]} {[%emt 00:00:03]} Nf6 {[%clk 00:14:57]}
{[%emt 00:00:11]} 3. Bb2 {[%clk 00:15:00]} {[%emt 00:00:08]} Bf5 {[%clk
00:14:42]} {[%emt 00:00:19]} 4. e3 {[%clk 00:14:56]} {[%emt 00:00:08]} e6
{[%clk 00:14:36]} {[%emt 00:00:12]} 5. h3 {[%clk 00:14:56]} {[%emt 00:00:05]}
Nbd7 {[%clk 00:12:43]} {[%emt 00:01:58]} 6. a3 {[%clk 00:14:28]} {[%emt
00:00:34]} c5 {[%clk 00:12:22]} {[%emt 00:00:26]} 7. d3 {[%clk 00:14:31]}
{[%emt 00:00:02]} Bg6 {[%clk 00:11:57]} {[%emt 00:00:29]} 8. Nbd2 {[%clk
00:14:20]} {[%emt 00:00:16]} Qc7 {[%clk 00:11:50]} {[%emt 00:00:12]} 9. g3
{[%clk 00:14:00]} {[%emt 00:00:25]} Bd6 {[%clk 00:11:40]} {[%emt 00:00:15]} 10.
Qe2 {[%clk 00:13:58]} {[%emt 00:00:07]} O-O {[%clk 00:11:35]} {[%emt 00:00:10]}
11. g4 {[%clk 00:13:48]} {[%emt 00:00:15]} e5 {[%clk 00:09:49]} {[%emt
00:01:51]} 12. Nh4 {[%clk 00:11:47]} {[%emt 00:02:05]} e4 {[%clk 00:09:20]}
{[%emt 00:00:35]} 13. dxe4 {[%clk 00:10:48]} {[%emt 00:01:03]} Bxe4 {[%clk
00:09:19]} {[%emt 00:00:06]} 14. Nxe4 {[%clk 00:10:33]} {[%emt 00:00:21]} Nxe4
{[%clk 00:09:18]} {[%emt 00:00:06]} 15. O-O-O {[%clk 00:10:08]} {[%emt
00:00:30]} Nb6 {[%clk 00:08:44]} {[%emt 00:00:39]} 16. Bg2 {[%clk 00:09:40]}
{[%emt 00:00:32]} Be5 {[%clk 00:08:27]} {[%emt 00:00:22]} 17. Bxe4 {[%clk
00:09:26]} {[%emt 00:00:19]} Bxb2+ {[%clk 00:08:07]} {[%emt 00:00:25]} 18. Kxb2
{[%clk 00:09:30]} {[%emt 00:00:01]} Qe5+ {[%clk 00:07:51]} {[%emt 00:00:21]} 19.
Ka2 {[%clk 00:09:05]} {[%emt 00:00:29]} dxe4 {[%clk 00:07:28]} {[%emt
00:00:28]} 20. f4 {[%clk 00:07:59]} {[%emt 00:01:11]} exf3 {[%clk 00:05:51]}
{[%emt 00:01:42]} 21. Qxf3 {[%clk 00:07:44]} {[%emt 00:00:18]} c4 {[%clk
00:05:46]} {[%emt 00:00:13]} 22. Nf5 {[%clk 00:07:36]} {[%emt 00:00:13]} cxb3+
{[%clk 00:05:34]} {[%emt 00:00:17]} 23. cxb3 {[%clk 00:07:37]} {[%emt
00:00:04]} Rac8 {[%clk 00:03:07]} {[%emt 00:02:32]} 24. Rd2 {[%clk 00:06:37]}
{[%emt 00:01:02]} Rc7 {[%clk 00:02:20]} {[%emt 00:00:54]} 25. Rhd1 {[%clk
00:06:25]} {[%emt 00:00:17]} Qc3 {[%clk 00:01:47]} {[%emt 00:00:39]} 26. Qe4
{[%clk 00:05:24]} {[%emt 00:01:04]} h6 {[%clk 00:01:11]} {[%emt 00:00:44]} 27.
a4 {[%clk 00:04:01]} {[%emt 00:01:28]} a5 {[%clk 00:00:39]} {[%emt 00:00:37]}
1/2-1/2

[Event "Goteborg Open 2018"]
[Site "Molnlycke kulturhus, Biblioteksgatan 2, Molnlycke, Sweden"]
[Date "2018.08.17"]
[Round "4.10"]
[White "Nyberg, Ulf"]
[Black "Knutsson, Hakan"]
[Result "0-1"]
[TimeControl "15 minutes + 5 seconds per move from move one (Round 1 - 4) / 90 minutes + 30 seconds per move from move one (Round 5 - 8)"]
[WhiteFideId "1705083"]
[BlackFideId "1706810"]
[WhiteElo "2084"]
[BlackElo "1836"]

1. e4 {[%clk 00:15:00]} {[%emt 00:00:04]} c5 {[%clk 00:15:02]} {[%emt
00:00:04]} 2. a3 {[%clk 00:14:26]} {[%emt 00:00:39]} e6 {[%clk 00:15:02]}
{[%emt 00:00:06]} 3. b4 {[%clk 00:14:10]} {[%emt 00:00:21]} Qc7 {[%clk
00:14:12]} {[%emt 00:00:54]} 4. bxc5 {[%clk 00:11:20]} {[%emt 00:02:55]} Bxc5
{[%clk 00:13:14]} {[%emt 00:01:03]} 5. Nf3 {[%clk 00:10:27]} {[%emt 00:00:58]}
Nf6 {[%clk 00:12:56]} {[%emt 00:00:23]} 6. d4 {[%clk 00:10:02]} {[%emt
00:00:29]} Be7 {[%clk 00:12:54]} {[%emt 00:00:07]} 7. Bd3 {[%clk 00:09:57]}
{[%emt 00:00:10]} d6 {[%clk 00:12:42]} {[%emt 00:00:17]} 8. O-O {[%clk
00:09:52]} {[%emt 00:00:10]} e5 {[%clk 00:12:31]} {[%emt 00:00:16]} 9. Bb2
{[%clk 00:08:56]} {[%emt 00:01:01]} Nc6 {[%clk 00:11:44]} {[%emt 00:00:53]} 10.
d5 {[%clk 00:08:24]} {[%emt 00:00:36]} Na5 {[%clk 00:11:20]} {[%emt 00:00:28]}
11. c4 {[%clk 00:07:20]} {[%emt 00:01:10]} O-O {[%clk 00:10:31]} {[%emt
00:00:54]} 12. Nbd2 {[%clk 00:07:19]} {[%emt 00:00:06]} Bg4 {[%clk 00:10:22]}
{[%emt 00:00:14]} 13. h3 {[%clk 00:06:31]} {[%emt 00:00:52]} Bh5 {[%clk
00:10:19]} {[%emt 00:00:07]} 14. Qa4 {[%clk 00:05:54]} {[%emt 00:00:44]} b6
{[%clk 00:10:07]} {[%emt 00:00:17]} 15. Rfc1 {[%clk 00:05:37]} {[%emt
00:00:23]} Nb7 {[%clk 00:10:03]} {[%emt 00:00:09]} 16. Be2 {[%clk 00:03:55]}
{[%emt 00:01:47]} Nc5 {[%clk 00:09:10]} {[%emt 00:00:58]} 17. Qc2 {[%clk
00:03:44]} {[%emt 00:00:15]} Bg6 {[%clk 00:09:10]} {[%emt 00:00:05]} 18. Bd3
{[%clk 00:03:48]} {[%emt 00:00:02]} Nxd3 {[%clk 00:08:50]} {[%emt 00:00:25]} 19.
Qxd3 {[%clk 00:03:51]} {[%emt 00:00:02]} Nd7 {[%clk 00:08:52]} {[%emt
00:00:03]} 20. Qe3 {[%clk 00:03:35]} {[%emt 00:00:20]} Nc5 {[%clk 00:08:50]}
{[%emt 00:00:08]} 21. a4 {[%clk 00:03:08]} {[%emt 00:00:32]} f5 {[%clk
00:08:25]} {[%emt 00:00:30]} 22. exf5 {[%emt 00:00:30]} Bxf5 {[%clk 00:08:16]}
{[%emt 00:00:12]} 23. Ne1 {[%clk 00:02:36]} {[%emt 00:00:14]} Rf6 {[%clk
00:07:40]} {[%emt 00:00:41]} 24. f4 {[%clk 00:02:05]} {[%emt 00:00:36]} exf4
{[%clk 00:06:42]} {[%emt 00:01:03]} 25. Qxf4 {[%clk 00:01:51]} {[%emt
00:00:19]} Rf7 {[%clk 00:06:22]} {[%emt 00:00:25]} 26. Qg3 {[%clk 00:01:35]}
{[%emt 00:00:21]} Raf8 {[%clk 00:05:53]} {[%emt 00:00:35]} 27. Nb3 {[%clk
00:01:13]} {[%emt 00:00:27]} Ne4 {[%clk 00:05:39]} {[%emt 00:00:18]} 28. Qh2
{[%clk 00:00:42]} {[%emt 00:00:36]} Bh4 {[%clk 00:05:24]} {[%emt 00:00:20]} 29.
Bd4 {[%clk 00:00:34]} {[%emt 00:00:14]} Bg3 {[%emt 00:00:34]} 30. Qh1 Be5
{[%clk 00:04:13]} {[%emt 00:00:47]} 31. Bxe5 {[%clk 00:00:29]} {[%emt
00:00:14]} dxe5 {[%clk 00:04:16]} {[%emt 00:00:02]} 0-1

[Event "Goteborg Open 2018"]
[Site "Molnlycke kulturhus, Biblioteksgatan 2, Molnlycke, Sweden"]
[Date "2018.08.18"]
[Round "5.1"]
[White "Golubka, Petro"]
[Black "Gritsak, Orest"]
[Result "1/2-1/2"]
[TimeControl "15 minutes + 5 seconds per move from move one (Round 1 - 4) / 90 minutes + 30 seconds per move from move one (Round 5 - 8)"]
[WhiteTitle "IM"]
[BlackTitle "GM"]
[WhiteFideId "14114224"]
[BlackFideId "14102188"]
[WhiteElo "2478"]
[BlackElo "2464"]

1. e4 {[%clk 01:30:55]} {[%emt 00:00:04]} c6 {[%clk 01:30:35]} {[%emt
00:00:25]} 2. d4 {[%clk 01:31:20]} {[%emt 00:00:05]} d5 {[%clk 01:31:00]}
{[%emt 00:00:05]} 3. exd5 {[%clk 01:31:36]} {[%emt 00:00:14]} cxd5 {[%clk
01:31:24]} {[%emt 00:00:06]} 4. c4 {[%clk 01:32:05]} {[%emt 00:00:02]} Nf6
{[%clk 01:31:40]} {[%emt 00:00:14]} 5. Nc3 {[%clk 01:32:28]} {[%emt 00:00:07]}
e6 {[%clk 01:32:05]} {[%emt 00:00:05]} 6. Nf3 {[%clk 01:32:50]} {[%emt
00:00:08]} Bb4 {[%clk 01:32:23]} {[%emt 00:00:12]} 7. Bd3 {[%clk 01:32:48]}
{[%emt 00:00:31]} dxc4 {[%clk 01:31:41]} {[%emt 00:01:13]} 8. Bxc4 {[%clk
01:33:01]} {[%emt 00:00:16]} O-O {[%clk 01:30:37]} {[%emt 00:01:34]} 9. O-O
{[%clk 01:33:15]} {[%emt 00:00:16]} b6 {[%clk 01:30:26]} {[%emt 00:00:41]} 10.
Qb3 {[%clk 01:26:57]} {[%emt 00:06:49]} Bxc3 {[%clk 01:28:58]} {[%emt
00:01:58]} 11. Qxc3 {[%clk 01:27:22]} {[%emt 00:00:05]} Ba6 {[%clk 01:25:40]}
{[%emt 00:03:48]} 12. Bxa6 {[%clk 01:26:24]} {[%emt 00:01:29]} Nxa6 {[%clk
01:21:31]} {[%emt 00:04:39]} 13. Qc4 {[%clk 01:26:34]} {[%emt 00:00:20]} Qc8
{[%clk 01:18:48]} {[%emt 00:03:13]} 14. b3 {[%clk 01:25:21]} {[%emt 00:01:43]}
Qb7 {[%clk 01:15:58]} {[%emt 00:03:20]} 15. Bd2 {[%clk 01:25:37]} {[%emt
00:00:14]} Rac8 {[%clk 01:14:28]} {[%emt 00:02:00]} 16. Qd3 {[%clk 01:26:06]}
{[%emt 00:00:01]} Nb8 {[%clk 01:12:04]} {[%emt 00:02:54]} 17. Rfe1 {[%clk
01:24:36]} {[%emt 00:02:00]} Qa6 {[%clk 01:11:31]} {[%emt 00:01:03]} 18. Qxa6
{[%clk 01:24:25]} {[%emt 00:00:41]} Nxa6 {[%clk 01:11:56]} {[%emt 00:00:05]} 19.
Rac1 {[%clk 01:25:01]} {[%emt 00:00:23]} Nd5 {[%clk 01:12:40]} {[%emt
00:00:17]} 20. a4 {[%clk 01:24:47]} {[%emt 00:00:44]} Rxc1 {[%clk 01:10:12]}
{[%emt 00:02:58]} 21. Rxc1 {[%clk 01:25:12]} {[%emt 00:00:05]} f6 {[%clk
01:10:27]} {[%emt 00:00:14]} 22. Kf1 {[%clk 01:25:39]} {[%emt 00:00:04]} Rd8
{[%clk 01:09:56]} {[%emt 00:01:01]} 23. Ke2 {[%clk 01:26:03]} {[%emt 00:00:06]}
Kf8 {[%clk 01:10:08]} {[%emt 00:00:17]} 24. Rc4 {[%clk 01:25:15]} {[%emt
00:01:18]} Ke7 {[%clk 01:03:34]} {[%emt 00:07:04]} 25. Kd3 {[%clk 01:24:14]}
{[%emt 00:01:31]} Kd7 {[%clk 01:01:46]} {[%emt 00:02:18]} 26. h4 {[%clk
01:24:23]} {[%emt 00:00:22]} Rb8 {[%clk 01:01:36]} {[%emt 00:00:40]} 27. Kc2
{[%clk 01:24:14]} {[%emt 00:00:39]} h5 {[%clk 01:01:30]} {[%emt 00:00:35]} 28.
Ne1 {[%clk 01:24:23]} {[%emt 00:00:21]} Nac7 {[%clk 01:01:17]} {[%emt
00:00:43]} 29. Nd3 {[%clk 01:24:40]} {[%emt 00:00:14]} Ne8 {[%clk 01:01:34]}
{[%emt 00:00:13]} 30. Bf4 {[%clk 01:23:11]} {[%emt 00:01:57]} Rd8 {[%clk
00:53:14]} {[%emt 00:08:51]} 31. Bh2 {[%clk 01:22:25]} {[%emt 00:01:16]} g6
{[%clk 00:50:27]} {[%emt 00:03:18]} 32. Nb4 {[%clk 01:15:25]} {[%emt 00:07:31]}
Nxb4+ {[%clk 00:40:40]} {[%emt 00:10:16]} 33. Rxb4 {[%clk 01:13:37]} {[%emt
00:02:17]} Kc6 {[%clk 00:39:54]} {[%emt 00:01:17]} 34. Rc4+ {[%clk 01:13:57]}
{[%emt 00:00:10]} Kb7 {[%clk 00:40:16]} {[%emt 00:00:07]} 35. Bf4 {[%clk
01:14:17]} {[%emt 00:00:10]} Rd7 {[%clk 00:40:26]} {[%emt 00:00:20]} 36. f3
{[%clk 01:07:49]} {[%emt 00:06:59]} Ng7 {[%emt 00:00:08]} 37. Kc3 {[%emt
00:00:29]} 1/2-1/2

[Event "Goteborg Open 2018"]
[Site "Molnlycke kulturhus, Biblioteksgatan 2, Molnlycke, Sweden"]
[Date "2018.08.18"]
[Round "5.2"]
[White "Vypkhaniuk, Ihor"]
[Black "Rydstrom, Tom"]
[Result "1/2-1/2"]
[TimeControl "15 minutes + 5 seconds per move from move one (Round 1 - 4) / 90 minutes + 30 seconds per move from move one (Round 5 - 8)"]
[WhiteTitle "FM"]
[BlackTitle "FM"]
[WhiteFideId "14112256"]
[BlackFideId "1714830"]
[WhiteElo "2357"]
[BlackElo "2316"]

1. c4 {[%clk 01:30:42]} {[%emt 00:00:17]} e5 {[%clk 01:30:42]} {[%emt
00:00:18]} 2. g3 {[%clk 01:31:09]} {[%emt 00:00:02]} Nf6 {[%clk 01:30:43]}
{[%emt 00:00:29]} 3. Bg2 {[%clk 01:31:31]} {[%emt 00:00:08]} d5 {[%clk
01:31:09]} {[%emt 00:00:05]} 4. cxd5 {[%clk 01:31:54]} {[%emt 00:00:07]} Nxd5
{[%clk 01:31:35]} {[%emt 00:00:04]} 5. Nf3 {[%clk 01:32:18]} {[%emt 00:00:05]}
Nc6 {[%clk 01:31:52]} {[%emt 00:00:13]} 6. O-O {[%clk 01:32:31]} {[%emt
00:00:17]} Be7 {[%clk 01:32:07]} {[%emt 00:00:15]} 7. d4 {[%clk 01:32:39]}
{[%emt 00:00:22]} exd4 {[%clk 01:29:29]} {[%emt 00:03:08]} 8. Nxd4 {[%clk
01:31:00]} {[%emt 00:02:08]} Nxd4 {[%clk 01:29:45]} {[%emt 00:00:15]} 9. Qxd4
{[%clk 01:31:27]} {[%emt 00:00:03]} Nf6 {[%clk 01:30:10]} {[%emt 00:00:05]} 10.
Qa4+ {[%clk 01:31:36]} {[%emt 00:00:21]} c6 {[%clk 01:30:05]} {[%emt 00:00:35]}
11. Nc3 {[%clk 01:31:44]} {[%emt 00:00:22]} O-O {[%clk 01:29:26]} {[%emt
00:01:10]} 12. e4 {[%clk 01:30:46]} {[%emt 00:01:28]} Be6 {[%clk 01:27:38]}
{[%emt 00:02:18]} 13. h3 {[%clk 01:27:54]} {[%emt 00:03:21]} Nd7 {[%clk
01:26:24]} {[%emt 00:01:44]} 14. Qc2 {[%clk 01:24:02]} {[%emt 00:04:22]} a5
{[%clk 01:08:26]} {[%emt 00:18:29]} 15. Bf4 {[%clk 01:16:17]} {[%emt 00:08:15]}
Qc8 {[%clk 01:05:44]} {[%emt 00:03:12]} 16. Ne2 {[%clk 01:02:29]} {[%emt
00:14:17]} Nc5 {[%clk 01:00:04]} {[%emt 00:06:11]} 17. Nd4 {[%clk 00:57:43]}
{[%emt 00:05:16]} Rd8 {[%clk 00:58:59]} {[%emt 00:01:35]} 18. Be3 {[%clk
00:54:33]} {[%emt 00:03:40]} g6 {[%clk 00:49:50]} {[%emt 00:09:40]} 19. Kh2
{[%clk 00:52:16]} {[%emt 00:02:47]} Bd7 {[%clk 00:49:35]} {[%emt 00:00:44]} 20.
Nf5 {[%clk 00:48:30]} {[%emt 00:04:16]} Bxf5 {[%clk 00:49:10]} {[%emt
00:00:56]} 21. Bxc5 {[%clk 00:46:43]} {[%emt 00:02:17]} Bxc5 {[%clk 00:49:31]}
{[%emt 00:00:09]} 22. Qxc5 {[%clk 00:45:45]} {[%emt 00:01:27]} 1/2-1/2

[Event "Goteborg Open 2018"]
[Site "Molnlycke kulturhus, Biblioteksgatan 2, Molnlycke, Sweden"]
[Date "2018.08.18"]
[Round "5.3"]
[White "Bengtsson, Jessica"]
[Black "Maddens, Martijn"]
[Result "0-1"]
[TimeControl "15 minutes + 5 seconds per move from move one (Round 1 - 4) / 90 minutes + 30 seconds per move from move one (Round 5 - 8)"]
[BlackTitle "CM"]
[WhiteFideId "1711083"]
[BlackFideId "206962"]
[WhiteElo "1978"]
[BlackElo "2141"]

1. e4 {[%clk 01:30:57]} {[%emt 00:00:02]} c5 {[%clk 01:30:54]} {[%emt
00:00:06]} 2. c3 {[%clk 01:31:15]} {[%emt 00:00:12]} Nf6 {[%clk 01:31:17]}
{[%emt 00:00:07]} 3. e5 {[%clk 01:31:34]} {[%emt 00:00:12]} Nd5 {[%clk
01:31:41]} {[%emt 00:00:05]} 4. d4 {[%clk 01:32:01]} {[%emt 00:00:04]} cxd4
{[%clk 01:32:07]} {[%emt 00:00:04]} 5. Nf3 {[%clk 01:32:26]} {[%emt 00:00:05]}
d6 {[%clk 01:32:32]} {[%emt 00:00:05]} 6. cxd4 {[%clk 01:32:38]} {[%emt
00:00:18]} e6 {[%clk 01:32:48]} {[%emt 00:00:15]} 7. Bc4 {[%clk 01:32:26]}
{[%emt 00:00:42]} Nc6 {[%clk 01:33:09]} {[%emt 00:00:10]} 8. O-O {[%clk
01:32:36]} {[%emt 00:00:20]} Be7 {[%clk 01:33:35]} {[%emt 00:00:04]} 9. Bd2
{[%clk 01:30:27]} {[%emt 00:02:37]} O-O {[%clk 01:28:06]} {[%emt 00:05:59]} 10.
Nc3 {[%clk 01:29:35]} {[%emt 00:01:23]} Ncb4 {[%clk 01:19:18]} {[%emt
00:09:19]} 11. Qe2 {[%clk 01:21:38]} {[%emt 00:08:26]} b6 {[%clk 01:05:55]}
{[%emt 00:13:54]} 12. Ne4 {[%clk 01:13:13]} {[%emt 00:08:55]} dxe5 {[%clk
01:04:24]} {[%emt 00:02:02]} 13. dxe5 {[%clk 01:13:18]} {[%emt 00:00:25]} Bb7
{[%clk 01:01:34]} {[%emt 00:03:20]} 14. Rfd1 {[%clk 01:10:24]} {[%emt
00:03:22]} Rc8 {[%clk 00:58:01]} {[%emt 00:04:04]} 15. a3 {[%clk 01:05:40]}
{[%emt 00:05:15]} Nc6 {[%clk 00:56:16]} {[%emt 00:02:15]} 16. Bd3 {[%clk
01:00:08]} {[%emt 00:06:00]} h6 {[%clk 00:40:45]} {[%emt 00:16:01]} 17. Ng3
{[%clk 00:47:12]} {[%emt 00:13:27]} Qd7 {[%clk 00:37:34]} {[%emt 00:03:42]} 18.
Qe4 {[%clk 00:34:07]} {[%emt 00:13:33]} f5 {[%clk 00:37:26]} {[%emt 00:00:40]}
19. exf6 {[%clk 00:34:18]} {[%emt 00:00:20]} Nxf6 {[%clk 00:37:32]} {[%emt
00:00:24]} 20. Qe2 {[%clk 00:33:04]} {[%emt 00:01:43]} Nd5 {[%clk 00:30:09]}
{[%emt 00:07:53]} 21. Nh5 {[%clk 00:28:51]} {[%emt 00:04:42]} Kh8 {[%clk
00:25:33]} {[%emt 00:05:07]} 22. Qe4 {[%clk 00:27:33]} {[%emt 00:01:48]} Rf5
{[%clk 00:25:41]} {[%emt 00:00:23]} 23. g4 {[%clk 00:14:24]} {[%emt 00:13:39]}
g6 {[%clk 00:22:18]} {[%emt 00:03:54]} 24. gxf5 {[%clk 00:11:31]} {[%emt
00:03:23]} exf5 {[%clk 00:22:45]} {[%emt 00:00:02]} 25. Qe1 {[%clk 00:08:18]}
{[%emt 00:03:41]} gxh5 {[%clk 00:23:13]} {[%emt 00:00:03]} 26. Bc3+ {[%clk
00:04:56]} {[%emt 00:03:52]} Bf6 {[%clk 00:19:57]} {[%emt 00:03:46]} 27. Bxf6+
{[%clk 00:05:01]} {[%emt 00:00:25]} Nxf6 {[%clk 00:20:26]} {[%emt 00:00:01]} 28.
Nh4 {[%clk 00:00:43]} {[%emt 00:04:48]} Qg7+ {[%clk 00:17:35]} {[%emt
00:03:21]} 29. Ng2 {[%clk 00:00:37]} {[%emt 00:00:36]} Nd4 {[%clk 00:17:45]}
{[%emt 00:00:19]} 30. Qf1 {[%clk 00:00:39]} {[%emt 00:00:28]} Rg8 {[%clk
00:17:59]} {[%emt 00:00:16]} 31. f3 {[%clk 00:00:45]} {[%emt 00:00:24]} Nxf3+
{[%clk 00:18:12]} {[%emt 00:00:17]} 32. Kh1 {[%clk 00:00:32]} {[%emt 00:00:43]}
Nh4 {[%clk 00:18:35]} {[%emt 00:00:07]} 0-1